[Event "Fagernes Open 2021"]
[Site "Fagernes"]
[Date "2021.10.10"]
[Round "1.8"]
[White "Edvardsen, Ragnar"]
[Black "Carlin, Tormod"]
[Result "1-0"]
[ECO "D11"]
[WhiteElo "1865"]
[BlackElo "1554"]
[Annotator "NA RC"]
[PlyCount "119"]
[EventDate "2021.10.10"]
[EventCountry "NOR"]
[SourceTitle "playchess.com"]
[Source "ChessBase"]
[SourceQuality "1"]
[TimeControl "40/5400+30:1800+30"]

{[%evp 8,116,20,32767,32767,32767,32767,32767,32767,32767,32767,32767,32767,-30,-19,-43,-30,-39,0,-33,-33,-69,19,-5,11,32767,32767,32767,0,-72,-89,32767,-96,-88,32767,32767,32767,32767,32767,-81,-94,-91,32767,32767,32767,32767,32767,32767,-118,32767,32767,32767,32767,32767,-35,-35,32767,-43,-48,-31,32767,-36,32767,32767,32767,32767,32767,32767,32767,32767,32767,32767,32767,0,0,32767,32767,32767,0,0,0,32767,32767,32767,32767,32767,32767,32767,32767,32767,56,48,64,34,26,12,412,458,405,447,417,497,465,458,436,517,406,333,1545,4257,1498]} 1. d4 {[%emt 0:00:00]} d5 {[%emt 0:00:00]} 2. Nf3 {[%emt 0:00:00]} Nf6 {[%emt 0:00:00]} 3. g3 {[%emt 0:00:00]} Bf5 {[%emt 0:00:00]} 4. Bg2 {[%emt 0:00:00]} e6 {[%emt 0:00:00]} 5. O-O {[%emt 0:00:00]} Bd6 {[%emt 0:00:00]} 6. b3 {[%emt 0:00:00]} O-O {[%emt 0:00:00]} 7. Bb2 {[%emt 0:00:00]} Nbd7 {[%emt 0:00:00]} 8. c4 {[%emt 0:02:35]} c6 {[%emt 0:00:00]} 9. Nbd2 {[%emt 0:05:04]} h6 {[%emt 0:00:38]} 10. h3 {[%emt 0:11:35]} Qb8 {[%emt 0:19:33]} 11. Nh4 {[%emt 0:03:58]} Bh7 {[%emt 0:18:53]} 12. Re1 {[%emt 0:08:41]} g5 {[%emt 0:02:28]} 13. Nhf3 {[%emt 0:00:33]} Ne4 {[%emt 0:08:33]} 14. Nxe4 {[%emt 0:07:15]} Bxe4 {[%emt 0:00:30]} (14... dxe4 $15 15. Nd2 e3 16. fxe3 Bxg3) 15. Nd2 {[%emt 0:01:04]} Bxg2 {[%emt 0:00:33]} 16. Kxg2 {[%emt 0:00:09]} f5 {[%emt 0:01:10]} 17. e3 {[%emt 0:00:48]} Nf6 {[%emt 0:06:00]} 18. f4 {[%emt 0:05:02]} (18. Nf3 $11) 18... Kh7 {[%emt 0:05:04]} 19. Nf3 {[%emt 0:04:15]} gxf4 {[%emt 0:00:40]} (19... Rg8 $19 {has better winning chances.} 20. Ne5 Ne4) 20. exf4 {[%emt 0:00:40]} Ne4 {[%emt 0:01:11]} 21. Ne5 {[%emt 0:00:48]} Bxe5 {[%emt 0:02:50]} 22. dxe5 {[%emt 0:00:27]} Qc7 {[%emt 0:00:18]} 23. cxd5 {[%emt 0:03:45]} cxd5 {[%emt 0:00:43]} 24. Rc1 {[%emt 0:00:36]} Qg7 {[%emt 0:10:29]} 25. Re3 {[%emt 0:01:20]} Rac8 {[%emt 0:00:56]} 26. Qe1 {[%emt 0:12:07]} Rxc1 {[%emt 0:00:46]} 27. Qxc1 {[%emt 0:01:18]} Qd7 {[%emt 0:00:31]} 28. Bd4 {[%emt 0:01:47]} Rc8 {[%emt 0:06:00]} 29. Qd1 {[%emt 0:00:48]} b6 {[%emt 0:01:05]} 30. Qd3 {[%emt 0:15:09]} Rc1 {[%emt 0:09:00]} ({Black should play} 30... h5 $17 31. Kh2 Qc6) 31. Bb2 {[%emt 0:00:36]} Rc6 {[%emt 0:00:24]} 32. Re2 {[%emt 0:03:36]} Qc7 {[%emt 0:01:08]} 33. Bd4 {[%emt 0:00:47]} Qc8 {[%emt 0:02:44]} 34. Bb2 {[%emt 0:03:08]} Qc7 {[%emt 0:02:02]} 35. Bd4 {[%emt 0:00:34]} Qc8 {[%emt 0:01:36]} 36. Bb2 {[%emt 0:00:17]} a6 {[%emt 0:00:08]} 37. Bd4 {[%emt 0:00:58]} b5 {[%emt 0:00:19]} 38. Kh2 {[%emt 0:01:38]} b4 {[%emt 0:00:56]} 39. g4 {[%emt 0:00:41]} fxg4 {[%emt 0:00:55]} 40. hxg4 {[%emt 0:00:21]} Qd8 {[%emt 0:00:29]} 41. Qh3 {[%emt 0:31:14]} Qf8 {[%emt 0:31:13]} 42. Qf3 {[%emt 0:01:25]} Qc8 {[%emt 0:00:00]} 43. Qd3 {[%emt 0:00:00]} Rc1 {[%emt 0:00:00]} 44. Bb2 {[%emt 0:00:00]} Rc7 {[%emt 0:00:00]} 45. Rg2 {[%emt 0:00:00]} Rf7 {[%emt 0:00:00]} 46. f5 {[%emt 0:00:00]} exf5 {[%emt 0:00:00]} 47. Qxd5 {[%emt 0:00:00]} Ng5 {[%emt 0:00:00]} 48. Rf2 {[%emt 0:00:00]} f4 {[%emt 0:00:00]} (48... Rd7 $11 49. Qg2 Rd3 50. gxf5 Qd7) 49. Qd3+ {[%emt 0:00:00]} Kg8 {[%emt 0:00:00]} 50. Qg6+ {[%emt 0:00:00]} (50. e6 $5 Nxe6 51. Qg6+ Ng7 {[#]} 52. Rxf4 $1 $14) 50... Rg7 {[%emt 0:00:00]} 51. Qf5 {[%emt 0:00:00]} Qc5 $2 {[%emt 0:00:00] [#]} ({Black should play} 51... Qc6 $14) 52. Rc2 $1 {[%emt 0:00:00]} Nf3+ {[%emt 0:00:00]} 53. Kh3 {[%emt 0:00:00]} Ng5+ {[%emt 0:00:00]} 54. Kh4 {[%emt 0:00:00]} Nf3+ {[%emt 0:00:00]} 55. Kh5 {[%emt 0:00:00]} Qf8 {[%emt 0:00:00]} 56. Qxf8+ {[%emt 0:00:00]} Kxf8 {[%emt 0:00:00]} 57. Rc8+ {[%emt 0:00:00]} Kf7 $2 {[%emt 0:00:00]} (57... Ke7 58. Rc7+ Kf8 59. Rxg7 Kxg7 60. e6+ Kf8) 58. e6+ {[%emt 0:00:00] Discovered Attack} Kxe6 $18 {[%emt 0:00:00]} 59. Bxg7 {[%emt 0:00:00]} Nh2 {[%emt 0:00:00]} 60. Bxh6 {[%emt 0:00:00]} 1-0

[Event "Fagernes Open 2021"]
[Site "Fagernes"]
[Date "2021.10.10"]
[Round "1.9"]
[White "Langvik, Ulrikke"]
[Black "Kreken, Eivind Grunt"]
[Result "0-1"]
[ECO "B13"]
[WhiteElo "1542"]
[BlackElo "1838"]
[Annotator "NA"]
[PlyCount "70"]
[EventDate "2021.10.10"]
[EventCountry "NOR"]
[SourceTitle "playchess.com"]
[Source "ChessBase"]
[SourceQuality "1"]
[TimeControl "40/5400+30:1800+30"]

1. d4 {[%emt 0:00:00]} Nf6 {[%emt 0:00:00]} 2. Nf3 {[%emt 0:00:00]} c5 {[%emt 0:00:00]} 3. e3 {[%emt 0:00:00]} g6 {[%emt 0:00:00]} 4. Bd3 {[%emt 0:00:00]} Bg7 {[%emt 0:00:00]} 5. O-O {[%emt 0:00:00]} O-O {[%emt 0:00:00]} 6. Nbd2 {[%emt 0:00:00]} cxd4 {[%emt 0:00:00]} 7. exd4 {[%emt 0:00:00]} Nc6 {[%emt 0:00:00]} 8. c3 {[%emt 0:00:00]} d5 {[%emt 0:00:00]} 9. Re1 {[%emt 0:02:18]} Bf5 {[%emt 0:04:40]} 10. Bxf5 {[%emt 0:08:14]} gxf5 {[%emt 0:00:01]} 11. Ne5 {[%emt 0:03:03]} Nxe5 {[%emt 0:02:35]} 12. dxe5 {[%emt 0:03:14]} Ne4 {[%emt 0:05:02]} 13. Nxe4 {[%emt 0:02:16]} dxe4 {[%emt 0:13:17]} 14. Qh5 {[%emt 0:04:55]} Qd7 {[%emt 0:07:26]} 15. Bh6 {[%emt 0:08:44]} Bxh6 {[%emt 0:01:45]} 16. Qxh6 {[%emt 0:00:07]} Rad8 {[%emt 0:02:53]} 17. h3 {[%emt 0:14:49]} Qe6 {[%emt 0:23:51]} 18. Qxe6 {[%emt 0:03:31]} fxe6 {[%emt 0:00:22]} 19. Rad1 {[%emt 0:00:21]} Rd5 {[%emt 0:01:00]} 20. Rd4 {[%emt 0:04:00]} (20. c4 $11 Rc5 21. b3) 20... Rxe5 {[%emt 0:12:41]} 21. Rd7 {[%emt 0:03:04]} Rb5 {[%emt 0:01:44]} 22. b3 {[%emt 0:01:36]} Kf7 {[%emt 0:00:54]} 23. Kf1 {[%emt 0:03:04]} Ra5 {[%emt 0:03:07]} 24. Rxb7 {[%emt 0:00:55]} Rxa2 {[%emt 0:00:56]} 25. c4 $2 {[%emt 0:02:14] [#]} (25. Re2 $17 Ra3 26. Rd2) 25... Rd8 $1 {[%emt 0:01:03]} 26. c5 {[%emt 0:17:03]} Rdd2 {[%emt 0:00:10]} 27. c6 {[%emt 0:02:25]} Rxf2+ {[%emt 0:00:42]} 28. Kg1 {[%emt 0:00:05]} Rxg2+ {[%emt 0:00:06]} 29. Kh1 {[%emt 0:00:11]} Rh2+ {[%emt 0:00:17]} 30. Kg1 {[%emt 0:00:08]} Rag2+ {[%emt 0:00:17]} 31. Kf1 {[%emt 0:00:16]} Rc2 {[%emt 0:00:29]} 32. Kg1 {[%emt 0:00:43]} Rxh3 {[%emt 0:01:01]} 33. c7 {[%emt 0:01:48]} Rhc3 {[%emt 0:00:26]} 34. Rxa7 {[%emt 0:00:39]} Rxc7 {[%emt 0:00:09]} 35. Rxc7 {[%emt 0:01:18]} Rxc7 $19 {[%emt 0:00:08]} 0-1

[Event "Fagernes Open 2021"]
[Site "Fagernes"]
[Date "2021.10.10"]
[Round "1.10"]
[White "Pedersen, Max Moe"]
[Black "Lie, Terje"]
[Result "1-0"]
[ECO "D38"]
[WhiteElo "1837"]
[BlackElo "1522"]
[Annotator "NA"]
[PlyCount "75"]
[EventDate "2021.10.10"]
[EventCountry "NOR"]
[SourceTitle "playchess.com"]
[Source "ChessBase"]
[SourceQuality "1"]
[TimeControl "40/5400+30:1800+30"]

{[%evp 23,69,102,81,97,104,62,254,126,131,113,175,148,155,143,160,103,126,115,145,124,127,104,139,66,115,32767,32767,32767,32767,32767,32767,32767,707,771,820,917,817,943,806,848,957,1128,1282,32767,1043,1294,1503,1603]} 1. d4 {[%emt 0:00:00]} Nf6 {[%emt 0:00:00]} 2. c4 {[%emt 0:00:00]} e6 {[%emt 0:00:00]} 3. Nf3 {[%emt 0:00:00]} d5 {[%emt 0:00:00]} 4. Nc3 {[%emt 0:00:00]} Bb4 {[%emt 0:00:00]} 5. cxd5 {[%emt 0:00:00]} Bxc3+ {[%emt 0:00:00]} 6. bxc3 {[%emt 0:00:00]} Nxd5 {[%emt 0:00:00]} 7. e4 {[%emt 0:03:22]} Ne7 {[%emt 0:00:00]} 8. Bd3 {[%emt 0:04:09]} b6 {[%emt 0:00:00]} 9. O-O {[%emt 0:02:28]} Bb7 {[%emt 0:00:00]} 10. Bg5 {[%emt 0:04:45]} Nd7 {[%emt 0:00:00]} 11. a4 {[%emt 0:07:19]} O-O {[%emt 0:00:00]} 12. Qb3 {[%emt 0:03:53]} h6 {[%emt 0:00:00]} 13. Bh4 {[%emt 0:00:12]} Re8 {[%emt 0:00:00]} 14. a5 {[%emt 0:03:26]} Qb8 $2 {[%emt 0:00:00]} (14... Nc5 $14 15. Qc2 Nxd3 16. Qxd3 f6) 15. Bg3 {[%emt 0:07:44]} (15. a6 $18 {and White stays clearly on top.}) 15... Qd8 {[%emt 0:00:00]} 16. a6 {[%emt 0:01:43]} Bc8 {[%emt 0:00:00]} (16... Bc6 $16 {was necessary.}) 17. Bh4 {[%emt 0:01:06]} Nf8 {[%emt 0:03:13]} 18. Ne5 {[%emt 0:03:15]} f6 {[%emt 0:01:27]} 19. Nf3 {[%emt 0:02:28]} Kh8 {[%emt 0:03:43]} 20. Bg3 {[%emt 0:03:24]} Nc6 {[%emt 0:04:10]} 21. Rfe1 {[%emt 0:10:39]} Bd7 {[%emt 0:02:58]} 22. Qc2 {[%emt 0:03:35]} Rc8 {[%emt 0:00:56]} 23. Bf4 {[%emt 0:05:25]} (23. d5 $16 Na5 24. c4) 23... Ne7 {[%emt 0:01:18]} 24. Qd2 {[%emt 0:00:20]} g5 {[%emt 0:01:52]} 25. Be3 {[%emt 0:00:34]} Kg7 {[%emt 0:00:40]} 26. h4 {[%emt 0:00:53]} Nfg6 {[%emt 0:01:25]} 27. e5 {[%emt 0:02:05]} Nd5 $2 {[%emt 0:02:37]} (27... f5 28. hxg5 h5) 28. exf6+ {[%emt 0:00:53]} Qxf6 {[%emt 0:00:18]} 29. hxg5 {[%emt 0:00:20]} hxg5 {[%emt 0:01:32]} 30. Bxg5 {[%emt 0:00:11]} Qf7 {[%emt 0:01:29]} 31. Bh6+ {[%emt 0:06:00]} Kg8 {[%emt 0:00:17]} 32. Ne5 {[%emt 0:01:12]} Nxe5 {[%emt 0:02:18]} 33. Rxe5 {[%emt 0:00:29]} Kh8 {[%emt 0:04:36]} 34. Qg5 {[%emt 0:02:57]} Rg8 $18 {[%emt 0:00:37]} 35. Qh4 {[%emt 0:00:13]} Nf6 {[%emt 0:09:56]} 36. Bg5+ {[%emt 0:02:03]} Nh7 {[%emt 0:00:15]} 37. Bf6+ {[%emt 0:00:19]} Rg7 {[%emt 0:00:29]} 38. Qxh7# {[%emt 0:00:09]} 1-0

[Event "Fagernes Open 2021"]
[Site "Fagernes"]
[Date "2021.10.10"]
[Round "1.11"]
[White "Smedsrud, Morten S"]
[Black "Fredriksen, Jan Gunnar"]
[Result "0-1"]
[ECO "B06"]
[WhiteElo "1503"]
[BlackElo "1835"]
[Annotator "NA"]
[PlyCount "60"]
[EventDate "2021.10.10"]
[EventCountry "NOR"]
[SourceTitle "playchess.com"]
[Source "ChessBase"]
[SourceQuality "1"]
[TimeControl "40/5400+30:1800+30"]

{[%evp 19,57,-7,-11,-39,-17,-119,-118,-127,45,43,66,21,70,62,34,-31,32767,32767,-40,-54,32767,-161,32767,-161,32767,32767,32767,32767,32767,-303,32767,32767,32767,32767,32767,32767,-381,-357,32767,-692]} 1. e4 {[%emt 0:00:00]} c5 {[%emt 0:00:00]} 2. Nc3 {[%emt 0:00:00]} g6 {[%emt 0:00:00]} 3. d4 {[%emt 0:00:00]} Bg7 {[%emt 0:00:00]} 4. Be3 {[%emt 0:00:00]} cxd4 {[%emt 0:00:00]} 5. Bxd4 {[%emt 0:00:00]} Nf6 {[%emt 0:00:52]} 6. f3 {[%emt 0:02:02]} O-O {[%emt 0:00:44]} 7. Qd2 {[%emt 0:05:27]} Nc6 {[%emt 0:00:32]} 8. Be3 {[%emt 0:00:56]} Re8 {[%emt 0:06:06]} 9. g4 {[%emt 0:09:57]} d6 {[%emt 0:04:34]} 10. h4 {[%emt 0:06:49]} h5 {[%emt 0:03:05]} 11. gxh5 {[%emt 0:07:16]} Nxh5 {[%emt 0:01:04]} 12. Nge2 {[%emt 0:04:22] [#]} (12. O-O-O $15) 12... Ne5 $1 {[%emt 0:02:02]} 13. Nd4 {[%emt 0:06:45]} Bd7 $2 {[%emt 0:14:13]} ({Black should try} 13... Ng3 $17 14. Rh2 Qb6) 14. O-O-O {[%emt 0:10:08]} Rc8 {[%emt 0:01:31]} 15. Be2 {[%emt 0:06:00]} Nc4 {[%emt 0:08:36]} 16. Bxc4 {[%emt 0:06:25]} Rxc4 {[%emt 0:00:10]} 17. f4 {[%emt 0:09:45]} (17. Rhg1 $14) 17... Qa5 {[%emt 0:09:06]} 18. f5 {[%emt 0:05:10]} Rec8 $1 {[%emt 0:15:17]} 19. fxg6 {[%emt 0:06:13]} fxg6 {[%emt 0:00:34]} 20. Nb3 {[%emt 0:04:00]} (20. Rhg1 $15 Be8 21. Nd5 Qxa2 22. c3) 20... Bxc3 {[%emt 0:05:33]} 21. Nxa5 {[%emt 0:00:22]} Bxd2+ {[%emt 0:00:09]} 22. Rxd2 {[%emt 0:00:21]} Rxe4 {[%emt 0:00:25]} 23. Bg5 {[%emt 0:00:52]} Ng3 {[%emt 0:03:31]} 24. Rhd1 {[%emt 0:01:08]} Bg4 {[%emt 0:01:34]} 25. Rg1 {[%emt 0:01:41]} Ne2+ {[%emt 0:00:12]} 26. Rxe2 {[%emt 0:00:48]} Bxe2 {[%emt 0:00:09]} 27. Nxb7 {[%emt 0:03:00]} Bd3 {[%emt 0:13:53]} 28. c3 {[%emt 0:04:14]} Re2 {[%emt 0:00:38]} 29. h5 $19 {[%emt 0:00:35]} (29. Bd2 $142) 29... Rc2+ {[%emt 0:00:25]} 30. Kd1 {[%emt 0:00:11]} Rxb2 {[%emt 0:00:06]} 0-1

[Event "Fagernes Open 2021"]
[Site "Fagernes"]
[Date "2021.10.10"]
[Round "1.13"]
[White "Hellesoy, David"]
[Black "Lye, Sigurd"]
[Result "1/2-1/2"]
[ECO "B30"]
[WhiteElo "1500"]
[BlackElo "1821"]
[Annotator "NA"]
[PlyCount "65"]
[EventDate "2021.10.10"]
[EventCountry "NOR"]
[SourceTitle "playchess.com"]
[Source "ChessBase"]
[SourceQuality "1"]
[TimeControl "40/5400+30:1800+30"]

1. e4 {[%emt 0:00:00]} c5 {[%emt 0:00:00]} 2. Nf3 {[%emt 0:00:00]} Nc6 {[%emt 0:00:00]} 3. b4 {[%emt 0:00:00]} cxb4 {[%emt 0:00:00]} 4. d4 {[%emt 0:00:00]} e6 {[%emt 0:00:00]} 5. d5 {[%emt 0:00:00]} Qf6 {[%emt 0:00:00]} 6. c3 {[%emt 0:00:00]} Ne5 {[%emt 0:00:03]} 7. Be2 {[%emt 0:00:00]} Nxf3+ {[%emt 0:04:39]} 8. Bxf3 {[%emt 0:00:00]} bxc3 {[%emt 0:00:50]} 9. Qb3 {[%emt 0:00:01]} Bc5 {[%emt 0:09:50]} 10. Nxc3 {[%emt 0:03:48]} a6 {[%emt 0:02:40]} (10... Ne7 $11) 11. Bb2 {[%emt 0:04:39]} e5 {[%emt 0:05:01]} 12. O-O {[%emt 0:14:14]} Ne7 {[%emt 0:03:03]} 13. Na4 {[%emt 0:09:45]} (13. Ba3 $14 Bd6 14. Rab1) 13... Ba7 $1 {[%emt 0:01:10]} 14. d6 {[%emt 0:05:10]} Qxd6 {[%emt 0:07:46]} 15. Rfd1 {[%emt 0:07:04]} Qf6 {[%emt 0:12:42]} (15... Qe6 $1 $15) 16. Ba3 {[%emt 0:04:50]} b5 {[%emt 0:11:22]} 17. Rd6 {[%emt 0:10:09]} bxa4 {[%emt 0:05:27]} 18. Qd1 {[%emt 0:00:45]} Bxf2+ {[%emt 0:10:40]} 19. Kxf2 {[%emt 0:04:01]} Qh4+ {[%emt 0:00:16]} 20. Kg1 {[%emt 0:00:36]} f5 {[%emt 0:06:36]} 21. exf5 {[%emt 0:02:56]} Rb8 {[%emt 0:00:33]} 22. Qe2 {[%emt 0:11:30]} O-O {[%emt 0:06:50] [#]} 23. g4 $2 {[%emt 0:03:58]} ({Only move:} 23. Rf1 $1 $18) 23... Nc6 {[%emt 0:06:47]} 24. Rxc6 {[%emt 0:02:33]} dxc6 {[%emt 0:00:07]} 25. Bxf8 {[%emt 0:00:03]} Kxf8 {[%emt 0:00:43]} 26. Qxe5 {[%emt 0:01:03]} Rb7 {[%emt 0:02:16]} 27. Rd1 {[%emt 0:04:01]} Qe7 {[%emt 0:01:26]} 28. Qc3 {[%emt 0:03:01]} Rc7 $11 {[%emt 0:01:36]} 29. Re1 {[%emt 0:00:49]} Qd6 {[%emt 0:00:27]} 30. Rd1 {[%emt 0:02:18]} Qe7 {[%emt 0:00:45]} 31. Re1 {[%emt 0:01:25]} Qd6 {[%emt 0:00:32]} 32. Rd1 {[%emt 0:00:42]} Qe7 {[%emt 0:00:33]} 33. Re1 {[%emt 0:01:33]} 1/2-1/2

[Event "Fagernes Open 2021"]
[Site "Fagernes"]
[Date "2021.10.10"]
[Round "1.14"]
[White "Amundsen, Ask"]
[Black "Johnsen, Ole Jacob"]
[Result "1-0"]
[ECO "B84"]
[WhiteElo "1816"]
[BlackElo "1483"]
[Annotator "NA"]
[PlyCount "73"]
[EventDate "2021.10.10"]
[EventCountry "NOR"]
[SourceTitle "playchess.com"]
[Source "ChessBase"]
[SourceQuality "1"]
[TimeControl "40/5400+30:1800+30"]

{[%evp 23,72,93,106,0,135,134,145,79,108,103,135,52,68,71,77,46,89,58,90,66,72,34,0,0,10,-7,0,0,0,0,0,0,327,366,348,32767,32767,32767,338,338,32767,328,32767,32767,32767,32767,29993,29994,29998,29999,29999]} 1. e4 {[%emt 0:00:00]} c5 {[%emt 0:00:00]} 2. Nf3 {[%emt 0:00:00]} d6 {[%emt 0:00:00]} 3. d4 {[%emt 0:00:00]} cxd4 {[%emt 0:00:28]} 4. Nxd4 {[%emt 0:00:00]} Nf6 {[%emt 0:00:32]} 5. Nc3 {[%emt 0:00:00]} a6 {[%emt 0:00:13]} 6. Be3 {[%emt 0:00:00]} e6 {[%emt 0:00:11]} 7. Be2 {[%emt 0:00:00]} Be7 {[%emt 0:00:17]} 8. Qd2 {[%emt 0:00:00]} Qc7 {[%emt 0:12:50]} 9. O-O-O {[%emt 0:00:00]} Nc6 {[%emt 0:00:10]} 10. g4 {[%emt 0:00:00]} Nxd4 {[%emt 0:02:21]} 11. Bxd4 {[%emt 0:00:00]} e5 {[%emt 0:18:00]} 12. Be3 {[%emt 0:00:00]} Be6 {[%emt 0:00:36]} 13. g5 {[%emt 0:04:30]} ({Better is} 13. f4 $16) 13... Nd7 {[%emt 0:03:26]} (13... Nxe4 $1 $11 14. Nxe4 d5) 14. h4 {[%emt 0:05:15]} Nb6 {[%emt 0:02:00]} 15. h5 {[%emt 0:10:41]} (15. f4 $142) 15... Nc4 {[%emt 0:00:21]} 16. Bxc4 {[%emt 0:00:13]} Qxc4 {[%emt 0:00:20]} 17. Rdg1 {[%emt 0:07:17]} ({Better is} 17. f4 $16) 17... Rc8 {[%emt 0:00:24]} 18. f3 {[%emt 0:01:51]} b5 {[%emt 0:00:22]} 19. Kb1 {[%emt 0:00:26]} b4 {[%emt 0:00:25]} 20. Nd5 {[%emt 0:00:29]} Bxd5 {[%emt 0:00:33]} 21. exd5 {[%emt 0:00:17]} a5 $1 {[%emt 0:00:48]} 22. g6 {[%emt 0:09:18]} ({White should try} 22. Rg4 $16 Qb5 23. f4) 22... hxg6 {[%emt 0:00:27]} 23. hxg6 {[%emt 0:00:17]} Rxh1 {[%emt 0:00:10]} 24. gxf7+ {[%emt 0:00:23]} Kxf7 {[%emt 0:00:28]} 25. Rxh1 {[%emt 0:00:17]} a4 {[%emt 0:04:45]} 26. Qh2 {[%emt 0:10:41]} Bf6 {[%emt 0:06:56]} 27. Qh5+ {[%emt 0:02:01]} Ke7 $2 {[%emt 0:00:16]} (27... g6 $1 $11 {and Black has nothing to worry.} 28. Qh7+ (28. Qh3 Qxc2+ 29. Ka1 Qf5 $15) 28... Bg7) 28. Qf5 {[%emt 0:00:18]} Kf7 {[%emt 0:08:58]} 29. Qe6+ {[%emt 0:02:38]} Kg6 {[%emt 0:22:06]} 30. Rg1+ {[%emt 0:00:16]} Kh7 {[%emt 0:07:13]} 31. Qf5+ {[%emt 0:01:42]} ({Worse is} 31. Qxd6 Qxc2+ 32. Ka1 Rc4 $17) 31... Kg8 {[%emt 0:01:58] [#]} 32. Qxf6 $1 {[%emt 0:01:15]} Qxc2+ {[%emt 0:00:51]} 33. Ka1 {[%emt 0:00:09]} Rc7 {[%emt 0:01:41]} 34. Bh6 {[%emt 0:01:58]} g6 $2 {[%emt 0:04:50]} (34... Qd1+ $18 35. Rxd1 gxf6 36. Rg1+ Kh7) 35. Rxg6+ {[%emt 0:00:13]} Kh7 {[%emt 0:01:37]} 36. Rg7+ {[%emt 0:00:10]} Rxg7 {[%emt 0:01:12]} 37. Qxg7# {[%emt 0:00:07]} 1-0

[Event "Fagernes Open 2021"]
[Site "Fagernes"]
[Date "2021.10.10"]
[Round "1.15"]
[White "Dybvik, Bjorn Noralf"]
[Black "Sekkingstad, Thomas"]
[Result "0-1"]
[ECO "D00"]
[WhiteElo "1458"]
[BlackElo "1812"]
[Annotator "NA"]
[PlyCount "86"]
[EventDate "2021.10.10"]
[EventCountry "NOR"]
[SourceTitle "playchess.com"]
[Source "ChessBase"]
[SourceQuality "1"]
[TimeControl "40/5400+30:1800+30"]

{[%evp 20,84,-9,-69,-79,32767,32767,32767,-59,-88,-17,-60,-3,-83,-31,-194,-193,-237,-227,-229,-139,-131,-133,-155,-146,-300,-277,-299,32767,-331,-310,-346,-267,32767,32767,32767,32767,-330,32767,-254,32767,-628,32767,32767,-818,-932,32767,32767,32767,-1741,0,32767,0,32767,0,32767,32767,-1125,32767,32767,-12831,32767,32767,-2407,-12828,32767,-29981]} 1. d4 {[%emt 0:00:00]} d5 {[%emt 0:00:00]} 2. e3 {[%emt 0:00:00]} Nf6 {[%emt 0:00:00]} 3. Bd3 {[%emt 0:00:00]} c5 {[%emt 0:00:00]} 4. c3 {[%emt 0:00:00]} Nc6 {[%emt 0:00:00]} 5. f4 {[%emt 0:00:00]} c4 {[%emt 0:00:00]} 6. Bc2 {[%emt 0:00:00]} b5 {[%emt 0:00:00]} 7. Nd2 {[%emt 0:00:54]} Bg4 {[%emt 0:02:56]} 8. Ngf3 {[%emt 0:00:55]} e6 {[%emt 0:00:19]} 9. O-O {[%emt 0:01:57]} Be7 {[%emt 0:05:16]} 10. Qe1 {[%emt 0:02:24]} Bf5 {[%emt 0:04:22]} 11. Bxf5 {[%emt 0:03:07]} (11. e4 $11 dxe4 12. Nxe4) 11... exf5 {[%emt 0:00:06]} 12. Ne5 {[%emt 0:02:55]} Qc8 {[%emt 0:01:29]} 13. Qg3 {[%emt 0:04:53]} g6 {[%emt 0:01:51]} 14. Qf3 {[%emt 0:09:45]} a5 {[%emt 0:01:44]} 15. b3 {[%emt 0:04:01]} (15. a4 $11) 15... b4 {[%emt 0:07:07]} (15... O-O $17) 16. Bb2 {[%emt 0:03:01]} (16. Ndxc4 $11 dxc4 17. Qxc6+ (17. Nxc6 Ne4 $11) 17... Qxc6 18. Nxc6) 16... a4 {[%emt 0:19:01]} 17. Nxc6 {[%emt 0:14:12]} ({Better is} 17. cxb4 $1 $15 Bxb4 18. Ndxc4 dxc4 19. Qxc6+ Qxc6 20. Nxc6) 17... Qxc6 {[%emt 0:02:05]} 18. Nxc4 {[%emt 0:03:18]} bxc3 {[%emt 0:01:21]} 19. Ne5 {[%emt 0:03:49]} ({Reject} 19. Bxc3 Ne4) 19... Qc7 {[%emt 0:00:46]} 20. Rac1 {[%emt 0:03:33]} Ne4 {[%emt 0:00:44]} 21. Qe2 {[%emt 0:03:25]} O-O {[%emt 0:00:40]} 22. Rc2 {[%emt 0:04:01]} (22. bxa4 {was worth a try.} Rxa4 23. Ba1) 22... axb3 {[%emt 0:01:05]} 23. axb3 {[%emt 0:01:10]} Ra2 {[%emt 0:00:46]} 24. Bc1 {[%emt 0:06:42]} Rxc2 {[%emt 0:01:08]} 25. Qxc2 {[%emt 0:00:20]} Qb7 {[%emt 0:00:33]} 26. Nd3 {[%emt 0:05:27]} Qb5 {[%emt 0:02:56]} 27. Nf2 {[%emt 0:05:59]} Bb4 {[%emt 0:02:38]} 28. Nxe4 {[%emt 0:00:55]} fxe4 {[%emt 0:00:10]} 29. f5 {[%emt 0:02:56]} Ra8 {[%emt 0:02:49]} 30. f6 $2 {[%emt 0:01:29]} (30. Qf2 Qd7 31. fxg6 hxg6 32. h4) 30... Ra1 {[%emt 0:00:38]} 31. Qf2 {[%emt 0:02:43]} Bd6 {[%emt 0:00:45]} 32. Qh4 {[%emt 0:02:01]} Qxf1+ {[%emt 0:02:54]} 33. Kxf1 {[%emt 0:00:34]} Rxc1+ {[%emt 0:00:09]} 34. Ke2 {[%emt 0:01:31]} Ra1 $2 {[%emt 0:00:54]} ({Black should play} 34... Rc2+ $19 35. Kf1 Rd2) 35. Qg4 {[%emt 0:01:53]} Ra2+ {[%emt 0:00:18]} (35... Ra8 $5 36. Qd7 $8 Ra2+ 37. Ke1 Ra1+ 38. Kf2 Ra2+ 39. Ke1 Ra1+ 40. Kf2 Ra2+ 41. Ke1 $11) 36. Ke1 {[%emt 0:03:25]} Ra8 {[%emt 0:02:09]} 37. Qd7 {[%emt 0:01:17]} Bb4 {[%emt 0:00:13]} 38. Kd1 $2 {[%emt 0:01:28]} (38. Qc6 $16 Ra1+ 39. Kf2) 38... Ra1+ {[%emt 0:00:28]} 39. Kc2 {[%emt 0:00:35]} Ra2+ {[%emt 0:02:05]} 40. Kb1 {[%emt 0:02:51]} c2+ {[%emt 0:00:17]} 41. Kxa2 {[%emt 0:30:35]} c1=Q $19 {[%emt 0:30:07]} 42. Qd8+ {[%emt 0:00:00]} Bf8 {[%emt 0:00:00]} 43. Qxd5 {[%emt 0:00:00]} Qxe3 {[%emt 0:00:00]} 0-1